bitfinex/quotes_ETHUSD_20241203
["timestamp","ask_amount","ask_price","bid_price","bid_amount"]
[1733248405345,0.8896106,3573.7,3573.0,2.82674375]
[1733248405498,0.26164238,3573.6,3573.4,2.79841]
[1733248405813,0.26164238,3573.5,3573.4,2.79841]
[1733248405966,1.5605,3573.9,3573.4,2.79841]
[1733248406168,0.88960859,3573.8,3573.4,2.79841]
[1733248406400,0.26164958,3573.7,3573.4,2.79838]
[1733248406707,0.26164958,3573.6,3573.5,2.79837]
[1733248406917,1.5605,3573.9,3573.6,2.79828]
[1733248407220,0.7816749,3575.9,3573.7,2.82620263]
[1733248407221,0.26165209,3573.8,3573.7,2.82620263]
[1733248407507,0.6279348,3574.4,3574.2,2.79777]
[1733248407708,0.47092506,3574.3,3574.2,2.79777]
[1733248408085,0.88950989,3574.3,3574.2,2.79777]
[1733248408267,0.47092506,3574.3,3574.2,5.79777]
[1733248409014,0.26161556,3574.3,3574.2,5.79777]
[1733248409167,0.47089291,3574.3,3574.2,5.79777]
[1733248409369,0.26161556,3574.3,3574.2,5.79777]
[1733248410513,0.2615453,3574.3,3574.2,5.79777]
[1733248412708,0.2615453,3574.3,3574.0,2.79795]
[1733248412916,0.41844454,3574.6,3574.2,3.0]
[1733248413115,1.5605,3574.8,3574.2,3.0]
[1733248413116,0.88916112,3574.5,3574.2,3.0]
[1733248413274,0.47071658,3574.4,3574.0,2.79795]
[1733248413475,0.47071658,3574.4,3573.4,1.5801]
[1733248413476,1.5153,3574.2,3573.9,3.0]
[1733248413702,1.5153,3574.2,3573.6,2.79827]
[1733248413869,0.26148562,3574.1,3573.4,1.5801]
[1733248414074,0.21952302,3574.1,3573.6,2.79829]
[1733248414314,0.26149676,3574.0,3573.5,2.79833]
[1733248414548,0.26149676,3573.9,3573.0,1.5882]
[1733248414809,0.26150369,3573.8,3573.4,2.79844]
[1733248415020,0.21952302,3574.1,3573.0,4.38695]
[1733248415021,1.5605,3573.7,3573.6,2.79829]
[1733248415215,0.20920346,3574.0,3573.0,1.5882]
[1733248415216,1.5605,3574.0,3573.7,2.79816]
[1733248415385,0.26149673,3573.9,3573.7,2.79816]
[1733248415710,1.5605,3574.0,3573.7,2.79816]
[1733248415913,0.26149437,3573.9,3573.7,2.79816]
[1733248416212,1.5605,3574.0,3573.7,2.79816]
[1733248416368,0.2614896,3573.9,3573.7,2.79816]
[1733248416585,1.5605,3574.0,3573.7,2.79816]
[1733248416786,0.26148565,3573.9,3573.7,2.79816]
[1733248417000,1.5605,3574.0,3573.7,2.79816]
[1733248417342,0.26148647,3573.9,3573.7,2.79816]
[1733248417484,1.5605,3574.0,3573.7,2.79816]
[1733248417685,0.26148912,3573.9,3573.7,2.79816]
[1733248417886,0.26148912,3573.8,3573.7,2.79816]
[1733248418217,0.26148912,3573.8,3573.5,2.79835]
[1733248418417,1.5605,3574.0,3573.5,2.79835]
[1733248418731,0.26150709,3573.9,3573.6,2.79829]
[1733248418882,1.5605,3574.0,3573.4,2.79843]
[1733248419082,1.5605,3574.0,3573.0,1.5882]
[1733248419083,0.62675135,3573.9,3573.0,1.5882]
[1733248419289,0.47071751,3573.8,3573.2,2.79857]
[1733248419531,0.26149566,3573.7,3573.2,2.79857]
[1733248419737,0.26149566,3573.6,3573.2,2.79857]
[1733248419885,0.15605,3573.9,3573.2,2.79857]
[1733248420085,0.15605,3573.9,3572.7,1.5549]
[1733248420086,0.64240855,3573.8,3573.0,2.79876]
[1733248420288,0.64240855,3573.8,3572.7,1.5549]
[1733248420289,1.82202979,3573.7,3572.7,1.5549]
[1733248420595,0.26152979,3573.6,3573.1,2.79867]
[1733248420938,0.26152979,3573.5,3573.1,2.79867]
[1733248421092,0.26152979,3573.4,3573.1,2.79867]
[1733248421287,1.5605,3573.7,3573.1,2.79867]
[1733248421288,0.20930101,3573.6,3573.1,2.79867]
[1733248421521,0.26163722,3573.5,3573.1,2.79867]
[1733248421730,0.26163722,3573.4,3573.1,2.79867]
[1733248421928,1.5605,3573.7,3573.1,2.79867]
[1733248422096,0.47095092,3573.6,3573.1,2.79867]
[1733248422298,0.26163915,3573.5,3573.1,2.79864]
[1733248422539,0.26163915,3573.4,3573.1,2.79864]
[1733248422749,1.7493205,3573.7,3572.7,1.5549]
[1733248422943,0.47108163,3573.6,3573.1,2.79867]
[1733248423149,0.47108163,3573.6,3572.9,2.79881]
[1733248423150,0.26171285,3573.5,3572.9,2.79881]
[1733248423296,0.26171285,3573.4,3572.9,2.79881]
[1733248423496,0.26171285,3573.3,3572.9,2.79881]
[1733248423725,0.26171285,3573.2,3572.9,2.79881]
[1733248423938,0.2883006,3573.6,3572.9,2.79881]
[1733248424115,1.14457625,3573.5,3572.9,2.79881]
[1733248424313,0.47126052,3573.4,3572.5,3.0]
[1733248424539,0.2618114,3573.3,3573.0,2.7987]
[1733248424739,0.2618114,3573.2,3572.7,3.0]
[1733248425045,1.5605,3573.7,3573.2,2.79861]
[1733248425243,1.07997022,3573.6,3573.2,2.79861]
[1733248425453,0.89039871,3573.5,3573.2,2.79861]
[1733248425656,0.47138755,3573.4,3573.2,2.79861]
[1733248425822,0.26188197,3573.3,3573.2,2.79861]
[1733248426337,1.5605,3573.7,3573.2,2.79861]
[1733248426520,0.47142699,3573.6,3573.4,2.79838]
[1733248426719,0.26190403,3573.5,3573.4,2.79838]
[1733248428008,1.5605,3573.7,3573.4,2.79838]
[1733248428207,0.26188782,3573.5,3573.4,2.79838]
[1733248428521,1.5605,3573.7,3573.5,2.79837]
[1733248428924,0.26189001,3573.6,3573.5,2.79837]
[1733248430929,0.26189001,3573.6,3573.2,2.79861]
[1733248431244,1.5605,3574.1,3573.7,2.79815]
[1733248431455,1.22561823,3574.0,3573.5,2.79835]
[1733248431742,1.22561838,3573.9,3573.5,2.79835]
[1733248432043,0.8904021,3573.8,3573.3,2.7985]
[1733248432243,0.8904021,3573.7,3573.2,2.79858]
[1733248432448,0.8904021,3573.6,3573.3,2.79852]
[1733248432649,2.03189168,3573.5,3572.8,1.6103]
[1733248432943,2.03189168,3573.5,3572.7,3.0]
[1733248432944,0.26188151,3573.4,3572.9,2.79877]
[1733248433143,0.26188151,3573.3,3572.9,2.79877]
[1733248433357,0.26188151,3573.2,3572.9,2.79877]
[1733248433508,1.5605,3573.5,3573.0,2.79874]
[1733248433709,0.20952983,3573.4,3573.0,2.79874]
[1733248433909,1.5605,3573.5,3573.0,2.79874]
[1733248434155,0.47144185,3573.4,3573.0,2.79874]
[1733248434445,0.26191229,3573.3,3572.6,2.79907]
[1733248434651,0.26191229,3573.2,3572.7,0.46984205]
[1733248434821,1.5605,3573.5,3572.5,1.6103]
[1733248435151,0.89049921,3573.4,3573.3,2.79853]
[1733248435309,0.89047667,3573.4,3573.3,2.79853]
[1733248435509,0.26191247,3573.4,3573.3,2.79853]
[1733248436342,1.5605,3573.8,3573.6,2.79829]
[1733248436656,0.89030047,3573.7,3572.8,4.39808]
[1733248436853,0.47133713,3573.6,3572.9,2.79882]
[1733248437022,0.26185334,3573.5,3572.9,2.79882]
[1733248437221,0.26185334,3573.4,3573.0,2.79876]
[1733248437548,0.26185334,3573.3,3573.2,2.79861]
[1733248437857,0.26185334,3573.3,3573.2,4.917651]
[1733248438014,0.62848233,3573.7,3573.2,2.119041]
[1733248438355,0.26184924,3573.6,3573.5,2.79833]
[1733248440045,1.5605,3573.5,3572.8,4.5593]
[1733248440365,1.5605,3573.5,3572.4,0.28905052]
[1733248440366,0.26184924,3573.4,3573.0,2.79875]
[1733248440651,0.26184924,3573.3,3572.6,1.5593]
[1733248440854,0.26184924,3573.2,3572.8,2.79885]
[1733248441051,0.26184924,3573.1,3572.8,2.79891]
[1733248441256,0.26202594,3573.0,3572.8,2.79891]
[1733248441424,0.26202594,3572.9,3572.6,2.79904]
[1733248441631,0.20962089,3573.3,3572.5,2.79916]
[1733248441936,0.890836,3573.2,3572.6,0.02798944]
[1733248442122,1.5605,3573.5,3572.4,2.79923]
[1733248442322,0.89097676,3573.4,3573.2,2.79859]
[1733248442530,0.89097676,3573.3,3573.2,2.79859]
[1733248442740,0.68134072,3573.3,3573.2,2.79859]
[1733248442983,0.26205412,3573.3,3573.2,3.231529]
[1733248444759,0.26205412,3573.3,3573.2,2.79859]
[1733248444956,0.26205412,3573.3,3573.0,2.79873]
[1733248445159,0.26205412,3573.2,3572.6,1.6011]
[1733248445356,0.26205412,3573.1,3572.6,2.79901]
[1733248445566,0.26205412,3573.0,3572.4,2.79922]
[1733248445759,1.5605,3572.8,3572.4,2.79922]
[1733248446005,0.89127147,3572.7,3572.5,2.79913]
[1733248446194,1.5605,3572.8,3572.5,2.79913]
[1733248446195,0.26205412,3572.6,3572.5,2.79916]
[1733248448205,1.5605,3573.6,3572.0,4.6011]
[1733248448411,0.26206022,3573.5,3572.7,2.79896]
[1733248448702,0.89100476,3573.4,3572.7,2.79896]
[1733248448904,0.89100476,3573.3,3572.1,0.16011]
[1733248449095,0.89100476,3573.2,3572.4,3.0]
[1733248449267,0.89100476,3573.1,3572.8,2.79886]
[1733248449466,0.89100476,3573.0,3572.8,2.79886]
[1733248449688,0.26206022,3572.9,3572.8,2.79886]
[1733248451673,0.26190459,3572.9,3572.8,2.79886]
[1733248452906,0.26190459,3572.9,3572.8,3.519998]
[1733248453119,0.62851005,3573.4,3573.3,2.79853]
[1733248453270,0.62851005,3573.8,3573.3,4.43743]
[1733248453476,2.56744309,3574.8,3573.4,3.242193]
[1733248453477,1.5266,3574.2,3573.4,3.242193]
[1733248453677,0.89016744,3574.1,3573.8,2.79813]
[1733248453871,0.89016744,3574.0,3573.8,2.79813]
[1733248454189,0.89016744,3573.9,3573.8,2.79813]
[1733248454405,0.26181422,3573.9,3573.8,2.79813]
[1733248454740,0.26181422,3573.9,3573.8,3.36057207]
[1733248454888,0.62822409,3574.3,3573.3,1.6389]
[1733248455081,2.15482409,3574.2,3573.2,2.79856]
[1733248455286,0.88999247,3574.1,3573.6,2.79828]
[1733248455592,0.47117735,3574.0,3573.6,2.79828]
[1733248455821,0.26176838,3573.9,3573.6,2.79828]
[1733248456131,1.5605,3573.7,3573.2,2.7986]
[1733248456929,0.26172359,3573.6,3573.2,2.7986]
[1733248457137,0.26172359,3573.5,3573.2,2.7986]
[1733248457284,1.5605,3573.7,3572.4,3.17388494]
[1733248457285,1.5605,3573.6,3572.5,2.79916]
[1733248457485,0.8900251,3573.5,3572.4,4.35067]
[1733248457722,0.8900251,3573.4,3572.9,2.79884]
[1733248457897,0.2617602,3573.3,3572.7,2.799]
[1733248458117,0.62825778,3573.5,3573.2,2.79861]
[1733248458295,0.62825778,3573.5,3572.7,2.799]
[1733248458296,0.26176371,3573.4,3573.3,2.79853]
[1733248458756,0.62825691,3573.8,3573.5,2.79836]
[1733248458949,0.26176683,3573.7,3573.2,2.79853]
[1733248459105,0.26176683,3573.6,3573.2,2.79853]
[1733248459312,0.26176683,3573.5,3573.3,2.79852]
[1733248459530,0.21887569,3573.8,3573.3,2.79852]
[1733248459704,0.26176883,3573.7,3573.3,2.79852]
[1733248459907,0.26176883,3573.6,3573.3,2.79852]
[1733248460229,0.26176845,3573.5,3573.1,2.79867]
[1733248460402,0.62828731,3573.7,3573.1,2.79867]
[1733248460608,0.2617852,3573.6,3573.1,2.79867]
[1733248460845,0.2617852,3573.5,3573.1,2.79867]
[1733248461141,1.5605,3573.9,3573.2,2.79853]
[1733248461328,0.89004732,3573.8,3573.2,2.79853]
[1733248461529,0.89004732,3573.7,3573.2,2.79853]
[1733248461716,0.26177867,3573.6,3573.2,2.79853]
[1733248462046,0.26178885,3573.5,3573.2,2.79853]
[1733248462202,0.6282927,3573.7,3573.2,2.79853]
[1733248462403,1.5605,3573.9,3573.2,2.79853]
[1733248462404,0.2617766,3573.6,3573.2,2.79853]
[1733248462603,0.2617766,3573.5,3573.2,2.79853]
[1733248462846,0.2617766,3573.4,3573.2,2.79853]
[1733248463049,1.5605,3573.9,3573.2,2.79853]
[1733248463344,1.04612678,3573.8,3573.2,2.79853]
[1733248463656,0.89007678,3573.7,3573.2,2.79853]
[1733248463812,0.26178729,3573.6,3572.8,1.5045]
[1733248464142,0.26178729,3573.5,3573.1,2.79862]
[1733248464446,0.26178729,3573.4,3573.1,2.79862]
[1733248464598,1.5036,3573.3,3572.9,2.79884]
[1733248465003,1.5036,3573.3,3573.0,2.79876]
[1733248465253,0.26180254,3573.2,3572.6,2.79908]
[1733248465544,1.5036,3573.6,3573.4,2.79844]
[1733248465781,0.26178708,3573.5,3573.2,2.79859]
[1733248465985,0.26178708,3573.4,3573.3,2.79852]
[1733248467181,1.5605,3573.9,3573.7,2.7982]
[1733248467347,1.5605,3573.9,3573.1,1.5762]
[1733248467348,0.68056761,3573.8,3573.5,2.79836]
[1733248467682,0.26175476,3573.7,3573.1,1.5762]
[1733248467843,0.26175476,3573.6,3573.4,2.79838]
[1733248468040,1.5605,3573.9,3573.4,2.79838]
[1733248468245,0.88999662,3573.8,3573.4,2.79838]
[1733248468480,0.26176717,3573.7,3573.4,2.79838]
[1733248468784,0.26176717,3573.6,3573.4,2.79838]
[1733248469086,0.26176717,3573.5,3572.7,2.79897]
[1733248469235,1.97933713,3573.7,3573.2,2.7986]
[1733248469236,1.5605,3573.7,3573.2,2.7986]
[1733248469450,0.26177618,3573.6,3573.0,2.79873]
[1733248469768,1.5605,3573.7,3573.0,2.79873]
[1733248469769,0.47121649,3573.5,3573.0,2.79873]
[1733248469964,0.26177618,3573.4,3573.1,2.79868]
[1733248470296,0.26177618,3573.4,3572.6,1.648]
[1733248470297,0.20943859,3573.6,3573.3,2.79853]
[1733248470612,0.26179771,3573.5,3573.3,2.79853]
[1733248470748,0.26179771,3573.4,3572.6,1.648]
[1733248470952,0.20943931,3573.6,3573.2,2.7986]
[1733248471207,0.2618047,3573.5,3573.2,2.7986]
[1733248471499,0.2618047,3573.4,3573.2,2.7986]
[1733248471657,1.5605,3573.7,3573.2,2.7986]
[1733248471867,0.8901425,3573.6,3572.6,1.648]
[1733248472093,0.26180662,3573.5,3573.3,2.7985]
[1733248472262,0.26180662,3573.4,3573.3,2.7985]
[1733248472464,1.85266217,3573.7,3573.3,2.7985]
[1733248472695,0.89015107,3573.6,3573.3,2.7985]
[1733248472878,0.26180643,3573.5,3573.3,2.7985]
[1733248473053,0.26180643,3573.4,3573.3,2.7985]
[1733248473399,0.26180643,3573.4,3572.6,1.648]
[1733248473555,0.26180643,3573.3,3573.0,2.79876]
[1733248473897,0.27428116,3573.4,3571.9,3.02798692]
[1733248473898,1.5605,3573.1,3572.8,2.79892]
[1733248474408,1.5605,3573.1,3572.9,2.79883]
[1733248474879,1.5374,3573.5,3572.6,0.02798745]
[1733248475089,0.4713163,3573.4,3572.6,1.5151]
[1733248475398,0.26184239,3573.3,3573.2,2.79857]
[1733248476190,0.2094541,3573.6,3573.4,2.79839]
[1733248476402,0.26182452,3573.5,3572.9,2.79878]
[1733248476699,0.26182452,3573.4,3573.2,2.79857]
[1733248476912,0.29216217,3573.7,3573.2,2.79857]
[1733248476913,0.26182452,3573.3,3573.2,2.79857]
[1733248477468,0.26182452,3573.3,3573.0,2.79873]
[1733248477666,0.47137264,3573.2,3573.1,2.79867]
[1733248477978,0.26182452,3573.2,3573.1,2.79867]
[1733248478356,0.47137059,3573.2,3573.1,2.79867]
[1733248478564,0.47137059,3573.2,3572.7,2.95046]
[1733248478752,0.26182452,3573.1,3572.7,0.15151]
[1733248478955,0.26182452,3573.0,3572.7,0.15151]
[1733248479195,0.41918404,3573.6,3572.7,0.15151]
[1733248479502,0.68117236,3573.5,3572.7,2.799]
[1733248479653,0.20961947,3573.4,3573.0,2.79869]
[1733248479861,0.89079183,3573.3,3573.0,2.79869]
[1733248480093,0.29216217,3573.7,3572.7,2.799]
[1733248480094,0.47160779,3573.2,3573.1,2.79866]
[1733248480397,0.89090948,3573.2,3573.0,2.79876]
[1733248480603,0.26198832,3573.1,3573.0,2.79876]
[1733248481762,0.26198832,3573.1,3572.6,1.5151]
[1733248482090,0.26198832,3573.0,3572.6,2.246525]
[1733248482258,0.29216217,3573.7,3572.9,2.79884]
[1733248482617,1.5476,3573.5,3572.7,2.79898]
[1733248482902,0.89118672,3573.4,3572.4,2.79917]
[1733248483106,0.89118672,3573.4,3572.3,1.592]
[1733248483107,2.79876,3573.0,3572.0,1.592]
[1733248483315,1.5476,3572.7,3572.0,1.592]
[1733248483516,0.26212348,3572.6,3571.7,1.592]
[1733248483807,0.26212348,3572.5,3571.9,2.79955]
[1733248483966,0.26212348,3572.4,3572.0,2.79953]
[1733248484162,0.26212348,3572.3,3572.1,2.79946]
[1733248484401,1.5476,3572.7,3572.1,2.79946]
[1733248484603,1.5476,3572.7,3571.9,2.79961]
[1733248484604,1.04554949,3572.6,3571.9,2.79961]
[1733248484872,2.79849,3573.4,3571.9,2.79961]
[1733248484873,0.89078949,3572.5,3571.9,0.02799333]
[1733248485102,1.5605,3573.0,3572.0,2.79955]
[1733248485416,0.89074219,3572.9,3572.4,2.79922]
[1733248485614,0.89074219,3572.8,3572.5,2.79915]
[1733248485917,0.68114529,3572.7,3572.5,2.79915]
[1733248486099,0.26197736,3572.6,3572.5,2.79915]
[1733248486666,0.26197736,3572.6,3572.1,1.5536]
[1733248486899,0.26197736,3572.5,3572.2,2.79935]
[1733248487080,0.26197736,3572.4,3572.2,2.79935]
[1733248487296,1.5605,3573.0,3572.2,2.79935]
[1733248487494,0.89034944,3572.9,3572.2,2.79935]
[1733248487818,1.5605,3573.0,3571.6,3.0]
[1733248487819,0.89034944,3572.8,3571.6,3.0]
[1733248488123,2.45085301,3572.7,3572.1,2.79946]
[1733248488298,0.26186763,3572.6,3572.1,2.79946]
[1733248488471,0.26186763,3572.5,3572.1,2.79946]
[1733248488673,1.5605,3572.7,3572.1,2.79946]
[1733248488904,0.26181686,3572.6,3572.1,2.79946]
[1733248489121,0.26181686,3572.5,3571.9,2.7996]
[1733248489270,0.20317714,3572.6,3571.7,1.5536]
[1733248489469,0.26178946,3572.5,3572.0,2.79953]
[1733248489714,0.26178946,3572.4,3572.0,2.79953]
[1733248489888,0.26178946,3572.3,3572.0,2.79953]
[1733248490211,0.62832215,3572.6,3572.0,2.79953]
[1733248490385,0.26174518,3572.5,3571.8,2.79969]
[1733248490750,0.26174518,3572.4,3571.9,2.79961]
[1733248491009,0.26174518,3572.3,3571.9,2.79961]
[1733248491216,0.21888222,3572.6,3571.9,2.79961]
[1733248491515,0.26174708,3572.5,3572.4,2.79923]
[1733248491721,0.20931721,3573.2,3572.8,2.79884]
[1733248491873,0.26163816,3573.1,3572.6,2.79908]
[1733248492075,0.62791887,3573.4,3572.5,2.79912]
[1733248492391,2.85965196,3574.0,3572.5,2.79912]
[1733248492392,2.44995577,3573.3,3572.5,2.79912]
[1733248492577,1.13455135,3573.2,3572.3,1.5103]
[1733248492779,0.68024587,3573.1,3572.3,1.5103]
[1733248493090,0.2616369,3573.0,3572.5,2.79908]
[1733248493293,0.2616369,3572.9,3572.5,2.79908]
[1733248493490,0.41866522,3573.1,3572.5,0.02798883]
[1733248493820,1.5604,3573.3,3572.9,2.79884]
[1733248494115,0.68032405,3573.2,3572.9,2.79884]
[1733248494314,0.26166335,3573.1,3572.9,2.79884]
[1733248494616,0.26166335,3573.0,3572.9,2.79884]
[1733248495194,0.26167578,3573.0,3572.9,2.79884]
[1733248496076,0.29220887,3574.0,3572.9,2.79884]
[1733248496077,1.5021,3573.7,3572.9,0.279884]
[1733248496281,0.88966329,3573.6,3572.9,1.855284]
[1733248496592,1.5021,3573.7,3573.1,2.79862]
[1733248496593,0.88964933,3573.5,3573.1,2.79862]
[1733248496917,0.26166113,3573.4,3573.1,2.79862]
[1733248497283,0.20932807,3573.5,3573.1,2.79862]
[1733248497498,0.26166601,3573.4,3573.1,2.79862]
[1733248497792,0.26166601,3573.3,3572.9,2.79877]
[1733248497999,0.26166601,3573.2,3572.7,2.79897]
[1733248498210,0.26166601,3573.1,3572.7,2.79897]
[1733248498393,0.26166601,3573.0,3572.7,2.79897]
[1733248498594,0.26166601,3572.9,3572.7,2.79897]
[1733248498805,0.62822509,3573.6,3572.8,2.79892]
[1733248499088,1.38283464,3573.5,3572.8,2.79892]
[1733248499321,0.88998713,3573.4,3572.8,2.79892]
[1733248499488,0.88998713,3573.3,3572.8,2.79892]
[1733248499700,0.88998713,3573.2,3572.8,2.79892]
[1733248499918,0.26176204,3573.1,3572.8,2.79892]
[1733248500096,0.26176204,3573.0,3572.8,2.79892]
[1733248500295,0.26176204,3572.9,3572.8,2.79892]
[1733248500803,0.26176204,3572.9,3572.6,1.5754]
[1733248500997,0.26176204,3572.8,3572.6,2.79904]
[1733248501198,1.5605,3573.1,3572.6,2.79904]
[1733248501407,0.26181841,3573.0,3572.7,2.79897]
[1733248501715,2.85965196,3574.0,3572.8,2.79892]
[1733248501716,0.26181841,3572.9,3572.8,2.79892]
[1733248502322,0.20946176,3573.3,3572.5,2.56744309]
[1733248502528,1.5605,3573.9,3573.2,2.79861]
[1733248502740,0.8902319,3573.8,3573.2,2.79861]
[1733248502943,0.8902319,3573.7,3573.2,2.79861]
[1733248503093,0.89022186,3573.6,3573.2,2.79861]
[1733248503342,0.89022186,3573.5,3573.0,4.40955]
[1733248503537,0.89022186,3573.4,3573.1,2.79867]
[1733248503833,0.89022186,3573.3,3573.2,2.79859]
[1733248504042,0.68075553,3573.3,3573.2,2.79859]
[1733248504212,0.26182905,3573.3,3573.2,2.79859]
[1733248506910,2.7976,3574.5,3573.4,2.79843]
[1733248507138,0.55,3574.4,3573.4,2.79843]
[1733248507441,0.55,3574.4,3573.5,2.79837]
[1733248507647,0.55,3574.4,3573.1,1.6397]
[1733248507648,3.34744,3574.7,3573.6,2.79828]
[1733248507797,3.34744,3574.7,3573.7,2.79821]
[1733248508002,0.55,3574.5,3573.7,2.79821]
[1733248508229,0.334744,3574.6,3573.7,2.79821]
[1733248509806,1.4508,3574.5,3573.7,2.79821]
[1733248510331,1.4508,3574.5,3573.1,1.6397]
[1733248510499,1.4508,3574.5,3573.6,2.79828]
[1733248510703,0.4583044,3574.4,3573.6,2.79828]
[1733248510939,1.4508,3574.5,3573.6,2.79828]
[1733248511436,1.4508,3574.4,3573.4,2.79844]
[1733248511639,4.24877,3574.1,3573.0,2.79874]
[1733248511843,3.11744309,3574.3,3573.0,2.79874]
[1733248511844,1.4508,3574.0,3573.0,2.79874]
[1733248512027,1.4508,3573.9,3573.1,2.79868]
[1733248512201,1.4508,3573.9,3572.7,1.5802]
[1733248512401,0.55,3574.3,3572.7,1.5802]
[1733248512402,1.4508,3573.7,3572.7,1.5802]
[1733248512597,1.87568,3573.7,3572.7,1.5802]
[1733248512846,1.87568,3573.7,3572.8,2.79892]
[1733248513025,1.4508,3573.6,3572.8,2.79892]
[1733248513897,1.4508,3573.6,3572.3,3.0]
[1733248514142,1.4508,3573.6,3572.7,2.79898]
[1733248514315,1.4508,3573.4,3572.7,2.79898]
[1733248516298,1.4508,3573.3,3572.3,2.79928]
[1733248516551,1.4508,3573.3,3572.3,2.79923]
[1733248516712,1.4508,3573.2,3572.3,2.79923]
[1733248516917,2.79854,3573.3,3572.3,2.79923]
[1733248516918,1.4508,3573.0,3572.3,2.79923]
[1733248517504,1.4508,3573.0,3572.5,2.79908]
[1733248517716,1.4508,3573.0,3572.3,0.431073]
[1733248517953,1.4508,3573.0,3572.1,4.31092]
[1733248518246,1.4508,3573.0,3572.5,2.79912]
[1733248518443,1.4508,3573.0,3572.6,2.79901]
[1733248518605,1.4508,3573.0,3572.1,1.5115]
[1733248518947,0.26183039,3572.9,3572.7,2.79894]
[1733248519143,0.26183039,3572.8,3572.7,2.79894]
[1733248519347,1.4508,3573.0,3572.7,3.078824]
[1733248519509,3.44779,3574.3,3573.2,2.79861]
[1733248519510,1.66028425,3573.6,3573.2,2.79861]
[1733248519702,0.8903015,3573.5,3573.2,2.79861]
[1733248519907,0.8903015,3573.4,3573.0,2.79875]
[1733248520149,0.2618525,3573.3,3573.0,2.79875]
[1733248520348,0.2618525,3573.2,3573.0,2.79875]
[1733248520518,0.2618525,3573.1,3572.8,1.5142]
[1733248520705,0.20953337,3573.5,3572.8,1.5142]
[1733248520706,0.62859683,3573.4,3572.9,0.1794094]
[1733248520913,0.26191114,3573.3,3572.8,2.79889]
[1733248521113,0.26191114,3573.2,3572.8,2.79889]
[1733248521309,0.26191114,3573.1,3572.8,2.79889]
[1733248521547,0.26191114,3573.0,3572.8,2.79889]
[1733248521709,1.4508,3572.8,3572.2,2.79936]
[1733248522050,0.26205899,3572.7,3572.3,2.79927]
[1733248522267,0.26205899,3572.6,3572.1,2.79945]
[1733248522433,0.26205899,3572.5,3572.1,2.79945]
[1733248522636,1.4508,3572.8,3571.8,2.79964]
[1733248522637,0.41928752,3572.7,3571.8,2.79965]
[1733248522983,1.4508,3572.5,3571.6,1.567]
[1733248523161,0.26205965,3572.4,3571.6,4.3668]
[1733248523465,1.4508,3572.5,3571.6,4.3668]
[1733248523466,0.26205965,3572.3,3571.6,4.3668]
[1733248523628,1.4508,3572.5,3571.6,2.7998]
[1733248523826,1.4508,3572.5,3571.3,1.5496]
[1733248523827,0.26202439,3572.4,3571.3,1.5496]
[1733248524071,0.26202439,3572.3,3571.3,4.5496]
[1733248524232,1.4508,3572.5,3572.0,2.79953]
[1733248524557,0.26196759,3572.4,3572.1,2.79946]
[1733248524751,1.4508,3572.5,3571.9,1.5496]
[1733248525066,1.4508,3572.8,3572.0,0.33354402]
[1733248525241,0.26191983,3572.7,3572.6,2.79908]
[1733248525775,1.4508,3573.5,3572.6,2.79908]
[1733248525945,0.89042832,3573.4,3572.1,2.79947]
[1733248526143,0.68091418,3573.3,3572.3,1.5496]
[1733248526362,0.2618859,3573.2,3572.4,2.79923]
[1733248526530,0.2618859,3573.1,3572.5,2.79911]
[1733248526730,1.4508,3573.5,3572.4,2.79923]
[1733248526731,0.41899038,3573.3,3572.4,2.79923]
[1733248527029,0.26186331,3573.2,3573.1,2.79865]
[1733248527230,0.26186331,3573.2,3573.1,3.51336]
[1733248527467,0.26186042,3573.2,3573.1,3.5134]
[1733248527669,0.62843649,3573.9,3573.3,2.79846]
[1733248527867,0.89027079,3573.8,3573.5,2.79837]
[1733248528067,0.29218489,3574.0,3573.1,0.71471]
[1733248528068,0.68078246,3573.7,3573.1,0.71471]
[1733248528229,0.2618343,3573.6,3573.4,2.79845]
[1733248528431,0.2618343,3573.5,3573.4,2.79845]
[1733248529165,0.2618343,3573.5,3573.2,2.79856]
[1733248529333,0.2618343,3573.4,3573.2,2.79856]
[1733248529674,0.2618343,3573.3,3573.2,2.79856]
[1733248529877,5.36528309,3574.2,3573.0,0.02798453]
[1733248529878,1.4508,3574.0,3573.0,0.02798453]
[1733248530080,0.89010643,3573.9,3573.1,0.43764045]
[1733248530238,0.89010643,3573.8,3573.1,3.23628045]
[1733248530440,0.68066833,3573.7,3573.3,2.79853]
[1733248530642,0.26179213,3573.6,3573.5,2.79831]
[1733248532384,0.3224599,3573.6,3573.5,4.30741]
[1733248532574,0.06066777,3573.6,3573.5,5.02081014]
[1733248532743,0.62814965,3574.2,3574.1,2.79786]
[1733248533090,0.88986148,3574.2,3574.1,2.79786]
[1733248533267,0.53208462,3574.2,3574.1,2.79786]
[1733248534293,0.47101148,3574.2,3574.1,2.79786]
[1733248534494,0.5319924,3574.2,3574.1,2.79786]
[1733248534696,0.32269275,3574.2,3574.1,2.79786]
[1733248535109,0.26171183,3574.2,3574.1,2.79786]
[1733248535693,0.32293896,3574.2,3574.1,2.79786]
[1733248535994,0.26171183,3574.2,3573.9,2.79803]
[1733248536198,0.26171183,3574.1,3573.9,3.07174362]
[1733248536352,0.26171183,3574.0,3573.9,2.79803]
[1733248537561,0.62755921,3574.4,3574.0,2.79793]
[1733248537762,1.4508,3574.7,3574.0,2.79793]
[1733248537997,0.06124442,3574.3,3574.0,2.79793]
[1733248538298,0.26145561,3574.2,3574.0,2.79793]
[1733248538500,0.26145561,3574.1,3574.0,2.79793]
[1733248538797,0.26145561,3574.1,3574.0,3.077723]
[1733248539798,0.26145561,3574.1,3574.0,4.665923]
[1733248540707,0.62749347,3574.5,3574.0,4.665923]
[1733248540860,0.41832898,3574.6,3574.0,1.867993]
[1733248541065,0.8887971,3574.5,3574.3,2.79773]
[1733248541266,0.26137118,3574.4,3574.3,2.79773]
[1733248541569,0.26133115,3574.4,3574.3,2.79773]
[1733248541888,0.26133115,3574.4,3574.3,3.2643023]
[1733248542259,0.29218597,3575.1,3574.3,0.4665723]